bitfinex-derivatives/quotes_SOLF0:USTF0_20250426
["timestamp","ask_amount","ask_price","bid_price","bid_amount"]
[1745635267951,6.5809,151.88,151.85,6.5819]
[1745635270157,6.5812,151.87,151.84,13.78078886]
[1745635270453,7.19848886,151.86,151.82,7.19848886]
[1745635270655,6.5827,151.84,151.8,7.19848886]
[1745635270955,7.19848886,151.85,151.8,7.19848886]
[1745635271956,6.5828,151.83,151.8,13.78238886]
[1745635272955,7.19848886,151.84,151.79,7.19848886]
[1745635273154,7.19848886,151.82,151.78,9.24108886]
[1745635273355,6.5845,151.8,151.76,13.78418886]
[1745635273852,6.5845,151.8,151.76,7.19848886]
[1745635274257,13.78238886,151.81,151.77,6.5854]
[1745635274558,13.78238886,151.81,151.77,7.19848886]
[1745635275458,13.78238886,151.81,151.77,13.78378886]
[1745635275657,13.78238886,151.81,151.77,7.19848886]
[1745635275955,7.19848886,151.81,151.78,6.5847]
[1745635276258,30.71848886,151.82,151.78,7.19848886]
[1745635276453,23.52,151.82,151.79,13.78278886]
[1745635276650,23.52,151.82,151.79,7.19848886]
[1745635276857,23.52,151.82,151.8,7.19848886]
[1745635277057,7.19848886,151.84,151.8,7.19848886]
[1745635277459,13.78118886,151.84,151.8,7.19848886]
[1745635278360,13.78118886,151.84,151.8,13.78218886]
[1745635278563,13.78118886,151.84,151.8,7.19848886]
[1745635278861,13.78118886,151.84,151.81,6.5834]
[1745635280062,23.52,151.85,151.8,7.19848886]
[1745635280063,30.102,151.85,151.82,6.5832]
[1745635280359,37.30048886,151.85,151.8,7.19848886]
[1745635280565,30.71848886,151.85,151.8,7.19848886]
[1745635280866,6.5828,151.84,151.8,13.78248886]
[1745635281065,7.19848886,151.84,151.79,7.19848886]
[1745635281465,13.78108886,151.84,151.8,6.5838]
[1745635282063,6.5829,151.83,151.8,6.5838]
[1745635282261,6.5829,151.83,151.8,13.78228886]
[1745635282564,13.78098886,151.84,151.8,13.78228886]
[1745635283167,6.5829,151.83,151.8,13.78228886]
[1745635284771,13.78108886,151.84,151.81,6.5836]
[1745635286575,13.78108886,151.84,151.8,7.19848886]
[1745635286576,30.1022,151.85,151.82,6.5831]
[1745635286974,37.30068886,151.85,151.8,7.19848886]
[1745635287174,30.71848886,151.85,151.8,7.19848886]
[1745635287875,6.5825,151.84,151.81,6.5834]
[1745635289179,37.30068886,151.85,151.81,6.5834]
[1745635290977,30.1022,151.85,151.81,6.5834]
[1745635292979,30.1022,151.85,151.82,6.5833]
[1745635293980,30.1022,151.85,151.81,13.78198886]
[1745635294880,6.5825,151.84,151.81,13.78198886]
[1745635303484,6.5825,151.84,151.81,7.19848886]
[1745635304991,6.5825,151.84,151.81,13.78218886]
[1745635305491,6.5825,151.84,151.81,7.19848886]
[1745635306287,6.5825,151.84,151.81,13.78208886]
[1745635306489,30.1022,151.85,151.82,7.19848886]
[1745635307187,6.5825,151.84,151.82,7.19848886]
[1745635309290,30.1022,151.85,151.82,7.19848886]
[1745635310093,30.1022,151.85,151.82,13.78158886]
[1745635313595,30.1022,151.85,151.82,7.19848886]
[1745635315496,6.5825,151.84,151.82,7.19848886]
[1745635317996,30.1022,151.85,151.82,7.19848886]
[1745635318697,6.5822,151.85,151.82,7.19848886]
[1745635320798,6.5822,151.85,151.82,13.78168886]
[1745635321499,6.5822,151.85,151.82,7.19848886]
[1745635322998,6.5824,151.84,151.82,7.19848886]
[1745635323199,30.71848886,151.86,151.82,7.19848886]
[1745635323399,30.71848886,151.86,151.81,13.78198886]
[1745635324300,6.5824,151.84,151.81,13.78198886]
[1745635326002,6.5821,151.85,151.81,13.78198886]
[1745635327002,1.14643387,151.93,151.84,7.19848886]
[1745635327198,23.52,151.94,151.9,7.19848886]
[1745635328003,6.5786,151.93,151.9,7.19848886]
[1745635328302,23.52,151.94,151.9,7.19848886]
[1745635328502,30.71848886,151.94,151.9,7.19848886]
[1745635328803,37.29668886,151.94,151.9,7.19848886]
[1745635329503,6.5785,151.93,151.9,7.19848886]
[1745635330601,6.579,151.92,151.89,7.19848886]
[1745635332005,6.5787,151.93,151.89,13.77858886]
[1745635332404,30.71848886,151.94,151.89,13.77858886]
[1745635333005,23.52,151.94,151.92,7.19848886]
[1745635333201,23.52,151.97,151.93,7.19848886]
[1745635333509,6.5775,151.96,151.94,7.19848886]
[1745635333808,23.52,151.97,151.94,7.19848886]
[1745635334109,30.0971,151.97,151.95,7.19848886]
[1745635334306,7.19848886,151.99,151.95,7.19848886]
[1745635334507,23.52,151.98,151.96,7.19848886]
[1745635334808,23.52,151.98,151.97,7.19848886]
[1745635336510,30.0963,151.98,151.97,7.19848886]
[1745635336812,23.52,151.98,151.91,29.3518]
[1745635337111,23.52,151.98,151.96,7.19848886]
[1745635338312,30.0965,151.98,151.96,7.19848886]
[1745635340317,6.5769,151.97,151.95,7.19848886]
[1745635340506,23.52,151.98,151.95,7.19848886]
[1745635340712,23.52,151.98,151.96,7.19848886]
[1745635341217,30.0965,151.98,151.96,7.19848886]
[1745635341815,30.0965,151.98,151.97,7.19848886]
[1745635342115,30.0965,151.98,151.96,7.19848886]
[1745635342417,6.5768,151.97,151.96,7.19848886]
[1745635342715,23.52,151.98,151.96,7.19848886]
[1745635343115,30.0966,151.98,151.96,7.19848886]
[1745635344613,23.52,151.98,151.96,7.19848886]
[1745635344813,7.19848886,151.97,151.93,7.19848886]
[1745635346012,7.19848886,151.96,151.91,9.10438886]
[1745635346317,7.19848886,151.96,151.91,7.19848886]
[1745635346519,6.5788,151.93,151.91,7.19848886]
[1745635347117,6.5788,151.93,151.92,7.19848886]
[1745635348013,6.5788,151.93,151.91,7.19848886]
[1745635348316,30.0782,151.94,151.91,7.19848886]
[1745635348522,30.0782,151.94,151.92,7.19848886]
[1745635348819,6.5785,151.93,151.92,7.19848886]
[1745635349320,23.5,151.94,151.92,7.19848886]
[1745635349519,30.0785,151.94,151.92,7.19848886]
[1745635350116,6.5785,151.93,151.92,7.19848886]
[1745635350322,23.5,151.94,151.92,7.19848886]
[1745635351123,6.5785,151.93,151.92,7.19848886]
[1745635351319,23.5,151.94,151.92,7.19848886]
[1745635351720,23.5,151.94,151.91,7.19848886]
[1745635352624,23.56,151.97,151.93,7.19848886]
[1745635352821,23.56,151.97,151.95,7.19848886]
[1745635353119,30.1369,151.97,151.95,7.19848886]
[1745635353421,23.56,151.97,151.95,7.19848886]
[1745635354325,30.1371,151.97,151.95,7.19848886]
[1745635354823,23.56,151.97,151.95,7.19848886]
[1745635355825,30.1369,151.97,151.95,7.19848886]
[1745635357125,30.1369,151.97,151.94,7.19848886]
[1745635358126,23.56,151.97,151.94,13.77648886]
[1745635358323,23.56,151.97,151.94,7.19848886]
[1745635359125,30.75848886,151.97,151.92,7.19848886]
[1745635359424,7.19848886,151.95,151.91,7.19848886]
[1745635360226,6.5783,151.94,151.91,7.19848886]
[1745635360429,7.19848886,151.95,151.91,7.19848886]
[1745635360623,7.19848886,151.94,151.9,7.19848886]
[1745635360930,7.19848886,151.92,151.88,7.19848886]
[1745635361427,6.5801,151.9,151.88,7.19848886]
[1745635361628,7.19848886,151.91,151.87,7.19848886]
[1745635361928,7.19848886,151.9,151.86,7.19848886]
[1745635362129,23.56,151.93,151.86,7.19848886]
[1745635362426,7.19848886,151.91,151.86,7.19848886]
[1745635362728,6.5803,151.89,151.86,7.19848886]
[1745635364728,6.5803,151.89,151.86,13.77998886]
[1745635364930,6.5799,151.9,151.86,13.77998886]
[1745635365131,6.5799,151.9,151.87,7.19848886]
[1745635366633,6.5794,151.91,151.88,7.19848886]
[1745635366834,23.56,151.93,151.89,7.19848886]
[1745635367134,6.5791,151.92,151.9,7.19848886]
[1745635367433,23.56,151.93,151.89,7.19848886]
[1745635367632,30.75848886,151.93,151.89,7.19848886]
[1745635367828,1.14601857,151.99,151.9,7.19848886]
[1745635368033,30.75848886,151.98,151.94,7.19848886]
[1745635368231,30.1363,151.98,151.95,7.19848886]
[1745635368429,23.56,151.98,151.95,7.19848886]
[1745635368631,474.04,152.01,151.91,23.58]
[1745635368830,511.39368886,152.01,151.97,7.19848886]
[1745635369036,30.1552,152.01,151.97,7.19848886]
[1745635369232,23.58,152.01,151.98,7.19848886]
[1745635369435,30.1551,152.01,151.98,7.19848886]
[1745635371033,23.58,152.01,151.98,7.19848886]
[1745635371732,30.1551,152.01,151.98,7.19848886]
[1745635373131,23.58,152.01,151.98,7.19848886]
[1745635373735,30.1553,152.01,151.98,7.19848886]
[1745635374238,30.77848886,152.01,151.96,7.19848886]
[1745635374433,2.0,152.06,151.97,7.19848886]
[1745635374637,30.75848886,152.04,152.0,7.19848886]
[1745635374933,30.75848886,152.04,151.99,7.19848886]
[1745635375232,6.5749,152.02,151.99,7.19848886]
[1745635375633,6.5749,152.02,151.99,13.77438886]
[1745635375834,6.5749,152.02,151.99,7.19848886]
[1745635376842,30.1342,152.04,151.99,7.19848886]
[1745635377034,30.1342,152.04,152.01,7.19848886]
[1745635378142,6.5742,152.03,152.01,7.19848886]
[1745635378342,30.75848886,152.04,151.99,7.19848886]
[1745635378538,6.575,152.02,151.99,7.19848886]
[1745635378738,6.575,152.02,152.0,7.19848886]
[1745635380142,30.75848886,152.04,151.99,7.19848886]
[1745635380444,7.19848886,152.03,151.98,7.19848886]
[1745635380644,6.5754,152.01,151.98,7.19848886]
[1745635381243,6.5758,152.0,151.98,7.19848886]
[1745635382246,6.5752,152.01,151.98,7.19848886]
[1745635382943,6.5748,152.02,151.98,7.19848886]
[1745635383243,6.5748,152.02,151.99,7.19848886]
[1745635383446,30.75848886,152.04,151.99,7.19848886]
[1745635384445,6.5752,152.01,151.99,7.19848886]
[1745635385549,6.5748,152.02,151.99,13.77438886]
[1745635385739,6.5748,152.02,151.99,7.19848886]
[1745635385939,30.75848886,152.04,151.99,7.19848886]
[1745635386147,6.5749,152.02,151.99,7.19848886]
[1745635386849,6.5749,152.02,151.99,13.77428886]
[1745635387350,6.5749,152.02,151.99,7.19848886]
[1745635388248,6.5749,152.02,151.99,13.77438886]
[1745635388949,6.5744,152.03,151.99,13.77438886]
[1745635389451,6.5746,152.02,151.99,13.77438886]
[1745635389754,23.56,152.04,152.01,7.19848886]
[1745635390148,23.56,152.04,152.01,13.77328886]
[1745635390349,24.22,152.07,152.03,7.19848886]
[1745635390552,6.573,152.06,152.03,7.19848886]
[1745635391350,7.19848886,152.05,152.01,7.19848886]
[1745635391758,24.22,152.07,152.01,7.19848886]
[1745635392059,7.19848886,152.05,152.01,7.19848886]
[1745635392557,6.574,152.04,152.01,7.19848886]
[1745635392958,6.5742,152.03,152.01,7.19848886]
[1745635394360,6.5742,152.03,151.99,7.19848886]
[1745635394361,7.19848886,152.03,151.99,7.19848886]
[1745635394551,7.19848886,152.03,151.97,7.19848886]
[1745635394857,6.5751,152.01,151.97,13.77498886]
[1745635395059,6.5751,152.01,151.97,7.19848886]
[1745635395261,31.41848886,152.03,151.98,7.19848886]
[1745635395455,6.5748,152.02,151.98,13.77448886]
[1745635395755,31.41848886,152.03,151.98,7.19848886]
[1745635395958,6.5747,152.02,151.98,13.77458886]
[1745635397458,6.5747,152.02,151.99,7.19848886]
[1745635398351,6.5747,152.02,151.99,13.77428886]
[1745635398555,30.7943,152.03,151.99,13.77428886]
[1745635398755,24.22,152.03,151.99,13.77428886]
[1745635399259,6.5749,152.02,151.99,7.19848886]
[1745635399454,24.22,152.03,151.99,7.19848886]
[1745635400460,6.575,152.02,151.99,7.19848886]
[1745635400660,6.575,152.02,151.98,13.77468886]
[1745635400856,24.22,152.03,152.0,7.19848886]
[1745635401058,30.7945,152.03,152.0,7.19848886]
[1745635401257,30.7945,152.03,151.96,26.2248]
[1745635401458,30.7945,152.03,152.0,7.19848886]
[1745635401962,6.5739,152.04,151.96,26.2248]
[1745635402260,31.41848886,152.06,152.01,7.19848886]
[1745635402462,7.19848886,152.04,152.0,7.19848886]
[1745635402660,24.22,152.06,152.0,7.19848886]
[1745635402858,7.19848886,152.05,152.01,7.19848886]
[1745635403362,6.5741,152.04,152.01,7.19848886]
[1745635403562,7.19848886,152.05,152.01,7.19848886]
[1745635403762,31.41848886,152.06,152.01,7.19848886]
[1745635404263,6.574,152.04,152.01,7.19848886]
[1745635405163,6.574,152.04,152.0,13.77368886]
[1745635406260,7.19848886,152.04,152.0,7.19848886]
[1745635406859,6.5745,152.03,152.0,7.19848886]
[1745635407069,7.19848886,152.05,152.0,7.19848886]
[1745635407665,6.5738,152.04,152.0,7.19848886]
[1745635407861,24.22,152.06,152.0,7.19848886]
[1745635408061,24.22,152.06,152.02,7.19848886]
[1745635408365,6.5736,152.05,152.02,7.19848886]
[1745635408572,24.22,152.06,152.02,7.19848886]
[1745635409364,6.5734,152.05,152.02,7.19848886]
[1745635409966,6.5739,152.04,152.02,7.19848886]
[1745635410264,24.22,152.06,152.02,7.19848886]
[1745635410466,6.5736,152.05,152.02,7.19848886]
[1745635410668,24.22,152.06,152.02,7.19848886]
[1745635411167,6.5734,152.05,152.02,7.19848886]
[1745635411562,6.5734,152.05,152.01,13.77328886]
[1745635412264,6.5739,152.04,152.01,7.19848886]
[1745635412469,31.41848886,152.06,152.01,7.19848886]
[1745635412764,7.19848886,152.05,152.01,7.19848886]
[1745635412963,6.574,152.04,152.01,7.19848886]
[1745635414368,6.5742,152.03,152.01,7.19848886]
[1745635415367,6.5739,152.04,152.01,7.19848886]
[1745635417774,6.5742,152.03,152.01,7.19848886]
[1745635418373,6.5738,152.04,152.01,7.19848886]
[1745635422176,6.5738,152.04,152.02,7.19848886]
[1745635422377,24.22,152.06,152.03,7.19848886]
[1745635422876,6.5729,152.06,152.03,13.77258886]
[1745635423178,7.19848886,152.08,152.04,7.19848886]
[1745635423577,24.8,152.09,152.06,7.19848886]
[1745635423979,6.5724,152.07,152.06,7.19848886]
[1745635424180,6.5724,152.07,152.03,6.5739]
[1745635424374,1.9632,152.11,152.05,7.19848886]
[1745635424582,6.5717,152.09,152.07,7.19848886]
[1745635425277,505.47848886,152.12,152.07,7.19848886]
[1745635425681,24.8,152.12,152.07,7.19848886]
[1745635425875,24.8,152.12,152.09,7.19848886]
[1745635426071,168.28652192,152.25,152.11,7.19848886]
[1745635426274,6.5689,152.16,152.14,7.19848886]
[1745635427581,6.569,152.15,152.14,7.19848886]
[1745635427881,24.8,152.21,152.14,7.19848886]
[1745635428081,6.568,152.18,152.14,7.19848886]
[1745635428282,7.19848886,152.18,152.14,7.19848886]
[1745635428483,6.5682,152.17,152.14,7.19848886]
[1745635428781,6.5682,152.17,152.13,13.76818886]
[1745635429484,6.5682,152.17,152.14,7.19848886]
[1745635429679,7.19848886,152.2,152.15,7.19848886]
[1745635429981,7.19848886,152.2,152.16,7.19848886]
[1745635430482,7.19848886,152.19,152.15,7.19848886]
[1745635431382,6.568,152.18,152.15,7.19848886]
[1745635431685,7.19848886,152.19,152.15,7.19848886]
[1745635432583,6.5678,152.18,152.15,7.19848886]
[1745635432982,7.19848886,152.19,152.15,7.19848886]
[1745635433385,6.5684,152.17,152.15,7.19848886]
[1745635433681,6.5684,152.17,152.14,7.19848886]
[1745635433986,6.5678,152.18,152.14,13.76758886]
[1745635434386,7.19848886,152.19,152.14,7.19848886]
[1745635434581,24.8,152.21,152.14,7.19848886]
[1745635434883,7.19848886,152.19,152.14,7.19848886]
[1745635435075,7.19848886,152.17,152.11,3.897]
[1745635435383,7.19848886,152.16,152.11,7.19848886]
[1745635435984,7.19848886,152.15,152.1,9.18308886]
[1745635436484,7.19848886,152.13,152.07,7.19848886]
[1745635436679,6.5716,152.09,152.07,7.19848886]
[1745635436885,6.5716,152.09,152.06,24.78]
[1745635437183,7.19848886,152.09,152.05,7.19848886]
[1745635437379,7.19848886,152.09,152.03,31.97848886]
[1745635437581,7.19848886,152.07,152.03,31.97848886]
[1745635437982,13.77108886,152.07,152.04,6.5737]
[1745635438585,13.77108886,152.07,152.03,31.97848886]
[1745635439285,6.5729,152.06,152.03,31.97848886]
[1745635439584,7.19848886,152.08,152.04,7.19848886]
[1745635439885,6.5726,152.07,152.04,7.19848886]
[1745635440285,7.19848886,152.08,152.04,7.19848886]
[1745635440585,6.5732,152.06,152.04,7.19848886]
[1745635441286,6.5726,152.07,152.04,7.19848886]
[1745635442689,6.5722,152.08,152.06,7.19848886]
[1745635443483,6.5724,152.07,152.06,7.19848886]
[1745635443788,24.78,152.09,152.05,7.19848886]
[1745635443987,31.3517,152.09,152.07,7.19848886]
[1745635444588,6.572,152.08,152.07,7.19848886]
[1745635444887,31.97848886,152.09,152.04,13.77218886]
[1745635445288,6.5725,152.07,152.04,13.77218886]
[1745635445491,6.5725,152.07,152.04,7.19848886]
[1745635445686,6.5725,152.07,152.03,6.5741]
[1745635445990,6.5725,152.07,152.03,13.77258886]
[1745635448490,6.5725,152.07,152.05,7.19848886]
[1745635449293,6.5729,152.06,152.05,7.19848886]
[1745635449492,6.5729,152.06,152.04,7.19848886]
[1745635451092,6.5726,152.07,152.04,7.19848886]
[1745635451693,7.19848886,152.08,152.04,7.19848886]
[1745635451894,6.5728,152.07,152.04,7.19848886]
[1745635453298,6.5729,152.06,152.05,7.19848886]
[1745635455997,6.5726,152.07,152.05,7.19848886]
[1745635456398,24.78,152.09,152.06,7.19848886]
[1745635457797,31.3518,152.09,152.06,13.77108886]
[1745635458099,6.5718,152.09,152.06,13.77108886]
[1745635458397,7.19848886,152.11,152.06,13.77108886]
[1745635458398,6.5713,152.1,152.07,7.19848886]
[1745635458700,6.5713,152.1,152.07,13.77088886]
[1745635460397,32.03848886,152.12,152.07,7.19848886]
[1745635460599,7.19848886,152.1,152.05,11.02238886]
[1745635460804,7.19848886,152.08,152.03,7.19848886]
[1745635461006,7.19848886,152.06,152.01,32.03848886]
[1745635461303,7.19848886,152.06,152.01,7.19848886]
[1745635461707,6.5741,152.04,152.01,7.19848886]
[1745635462002,7.19848886,152.06,152.0,9.14938886]
[1745635462203,6.574,152.04,152.0,9.14938886]
[1745635462600,6.574,152.04,152.01,7.19848886]
[1745635462912,24.84,152.08,152.03,7.19848886]
[1745635463112,32.03848886,152.08,152.03,7.19848886]
[1745635463611,6.5732,152.06,152.03,7.19848886]
[1745635463817,32.03848886,152.08,152.03,7.19848886]
[1745635464007,7.19848886,152.07,152.03,7.19848886]
[1745635464513,6.5737,152.05,152.03,7.19848886]
[1745635465310,6.5737,152.05,152.01,13.77338886]
[1745635465709,6.5738,152.04,152.01,7.19848886]
[1745635465914,7.19848886,152.07,152.01,7.19848886]
[1745635466813,7.19848886,152.05,152.0,8.5262]
[1745635467014,7.19848886,152.05,152.0,1.9509]
[1745635467313,7.19848886,152.05,152.0,9.14938886]
[1745635467807,6.5749,152.02,152.0,9.14938886]
[1745635468013,7.19848886,152.03,152.0,9.14938886]
[1745635468412,6.5749,152.02,152.0,9.14938886]
[1745635468816,6.5749,152.02,152.0,7.19848886]
[1745635469113,6.5753,152.01,151.97,8.5174]
[1745635469307,7.19848886,152.03,151.98,7.19848886]
[1745635469809,6.5748,152.02,151.98,7.19848886]
[1745635470015,7.19848886,152.03,151.98,7.19848886]
[1745635470212,7.19848886,152.03,151.97,1.9407]
[1745635470409,7.19848886,152.03,151.99,7.19848886]
[1745635470914,6.575,152.02,151.99,7.19848886]
[1745635471116,7.19848886,152.03,151.99,7.19848886]
[1745635471514,6.5747,152.02,151.99,7.19848886]
[1745635472111,6.5754,152.01,151.98,7.19848886]
[1745635472413,7.19848886,152.03,151.98,7.19848886]
[1745635472815,6.5752,152.01,151.98,13.77478886]
[1745635473116,7.19848886,152.03,151.98,13.77478886]
[1745635473415,32.05848886,152.04,151.99,7.19848886]
[1745635473617,6.5749,152.02,151.99,7.19848886]
[1745635475216,32.05848886,152.04,151.99,7.19848886]
[1745635475416,32.05848886,152.04,151.98,7.19848886]
[1745635475417,7.19848886,152.03,151.98,7.19848886]
[1745635476318,6.5755,152.0,151.98,7.19848886]
[1745635476818,6.5752,152.01,151.98,7.19848886]
[1745635477111,7.19848886,152.03,151.98,7.19848886]
[1745635477315,6.5747,152.02,151.98,13.77468886]
[1745635477520,6.5747,152.02,151.99,7.19848886]
[1745635477915,6.5753,152.01,151.99,7.19848886]
[1745635478717,6.5755,152.0,151.99,7.19848886]
[1745635478919,7.19848886,152.03,151.98,7.19848886]
[1745635479217,7.19848886,152.02,151.98,7.19848886]
[1745635479419,7.19848886,152.01,151.96,7.19848886]
[1745635479918,6.5764,151.98,151.96,7.19848886]
[1745635480124,7.19848886,152.01,151.96,7.19848886]
[1745635480328,31.99848886,152.0,151.96,7.19848886]
[1745635480620,6.5768,151.97,151.96,7.19848886]
[1745635480923,6.5765,151.98,151.96,7.19848886]
[1745635481422,6.5768,151.97,151.95,1.9537]
[1745635481618,6.5768,151.97,151.95,9.15218886]
[1745635482215,6.5768,151.97,151.93,7.19848886]
[1745635482216,6.5772,151.96,151.93,7.19848886]
[1745635482422,6.5772,151.96,151.92,13.77728886]
[1745635482625,7.19848886,151.97,151.92,7.19848886]
[1745635482922,6.5778,151.95,151.92,13.77738886]
[1745635483423,6.5773,151.96,151.94,7.19848886]
[1745635484528,6.5773,151.96,151.93,7.19848886]
[1745635485325,6.5777,151.95,151.93,7.19848886]
[1745635486323,6.5777,151.95,151.92,7.19848886]
[1745635486521,6.5782,151.94,151.92,7.19848886]
[1745635487218,31.99848886,151.96,151.91,7.19848886]
[1745635487422,7.19848886,151.94,151.88,1.9873]
[1745635487621,6.5796,151.91,151.88,9.18578886]
[1745635488423,6.5798,151.9,151.89,7.19848886]
[1745635488624,7.19848886,151.93,151.89,7.19848886]
[1745635489027,6.5795,151.91,151.89,7.19848886]
[1745635491027,6.5786,151.93,151.89,7.19848886]
[1745635491324,6.5786,151.93,151.9,7.19848886]
[1745635491525,7.19848886,151.95,151.91,7.19848886]
[1745635491725,31.99848886,151.96,151.91,7.19848886]
[1745635492523,6.5784,151.94,151.91,7.19848886]
[1745635496629,6.5786,151.93,151.91,7.19848886]
[1745635500637,6.5789,151.92,151.9,7.19848886]
[1745635501029,7.19848886,151.95,151.9,7.19848886]
[1745635501533,7.19848886,151.92,151.87,7.19848886]
[1745635501724,7.19848886,151.91,151.87,7.19848886]
[1745635501930,7.19848886,151.91,151.86,7.19848886]
[1745635502231,7.19848886,151.9,151.86,7.19848886]
[1745635502433,24.82,151.92,151.88,7.19848886]
[1745635502628,6.5797,151.91,151.88,7.19848886]
[1745635503233,24.82,151.92,151.89,7.19848886]
[1745635503534,24.82,151.92,151.89,13.77848886]
[1745635503926,24.82,151.92,151.9,7.19848886]
[1745635504227,24.6,151.95,151.9,13.77818886]
[1745635504434,6.5783,151.94,151.91,7.19848886]
[1745635504633,24.6,151.95,151.91,7.19848886]
[1745635504835,7.19848886,151.94,151.9,7.19848886]
[1745635505036,6.5795,151.91,151.89,7.19848886]
[1745635505241,7.19848886,151.93,151.89,7.19848886]
[1745635505437,7.19848886,151.92,151.88,7.19848886]
[1745635505738,24.6,151.95,151.9,7.19848886]
[1745635505932,31.79848886,151.95,151.91,7.19848886]
[1745635506335,6.5785,151.93,151.91,7.19848886]
[1745635506540,7.19848886,151.94,151.9,7.19848886]
[1745635506837,6.5786,151.93,151.9,7.19848886]
[1745635507343,6.5797,151.91,151.89,7.19848886]
[1745635507639,6.5797,151.91,151.88,7.19848886]
[1745635507827,7.19848886,151.92,151.88,7.19848886]
[1745635508032,6.5801,151.9,151.88,7.19848886]
[1745635508539,6.5803,151.89,151.87,7.19848886]
[1745635508739,7.19848886,151.92,151.87,7.19848886]
[1745635509638,7.19848886,151.92,151.87,13.77958886]
[1745635509939,6.5801,151.9,151.87,13.77958886]
[1745635510238,31.79848886,151.96,151.89,7.19848886]
[1745635510438,31.79848886,151.96,151.91,7.19848886]
[1745635510838,6.5788,151.93,151.91,7.19848886]
[1745635511034,6.5788,151.93,151.89,6.5801]
[1745635511236,7.19848886,151.94,151.9,7.19848886]
[1745635511638,6.5792,151.92,151.9,7.19848886]
[1745635511842,6.5792,151.92,151.89,7.19848886]
[1745635512030,7.19848886,151.94,151.89,7.19848886]
[1745635512234,24.6,151.96,151.85,1.9375]
[1745635512235,7.19848886,151.93,151.88,7.19848886]
[1745635512537,7.19848886,151.95,151.91,7.19848886]
[1745635512738,6.5789,151.93,151.85,1.9375]
[1745635512934,7.19848886,151.95,151.91,7.19848886]
[1745635513133,7.19848886,151.94,151.9,7.19848886]
[1745635513329,7.19848886,151.94,151.89,7.19848886]
[1745635513531,7.19848886,151.93,151.88,7.19848886]
[1745635513740,7.19848886,151.93,151.89,7.19848886]
[1745635513940,6.5798,151.91,151.89,7.19848886]
[1745635514335,7.19848886,151.93,151.89,7.19848886]
[1745635514630,7.19848886,151.93,151.88,7.19848886]
[1745635515035,6.5797,151.91,151.89,7.19848886]
[1745635515338,7.19848886,151.93,151.89,7.19848886]
[1745635515634,6.5797,151.91,151.89,7.19848886]
[1745635515840,7.19848886,151.94,151.9,7.19848886]
[1745635516042,31.79848886,151.96,151.91,7.19848886]
[1745635516245,6.5785,151.94,151.92,7.19848886]
[1745635516741,31.79848886,151.96,151.92,7.19848886]
[1745635517242,7.19848886,151.95,151.91,7.19848886]
[1745635517744,7.19848886,151.94,151.9,7.19848886]
[1745635518238,7.19848886,151.93,151.89,7.19848886]
[1745635519743,6.5798,151.9,151.89,7.19848886]
[1745635522250,6.5807,151.88,151.87,7.19848886]
[1745635530253,6.5814,151.87,151.85,9.13598886]
[1745635530548,7.19848886,151.9,151.85,9.13598886]
[1745635530750,7.19848886,151.9,151.85,1.9375]
[1745635531153,6.5814,151.87,151.85,1.9375]
[1745635531747,7.19848886,151.9,151.85,1.9375]
[1745635531748,6.5815,151.86,151.85,1.9375]
[1745635531953,7.19848886,151.9,151.85,1.9375]
[1745635532452,6.5814,151.87,151.85,1.9375]
[1745635532753,7.19848886,151.9,151.85,1.9375]
[1745635533053,6.5815,151.87,151.85,1.9375]
[1745635533652,31.63848886,151.88,151.83,7.19848886]
[1745635533851,24.44,151.88,151.83,7.19848886]
[1745635534045,24.44,151.88,151.85,7.19848886]
[1745635534454,31.0209,151.88,151.85,7.19848886]
[1745635534850,24.44,151.88,151.87,7.19848886]
[1745635535152,6.5803,151.89,151.87,7.19848886]
[1745635535849,24.44,151.91,151.88,7.19848886]
[1745635536253,24.44,151.91,151.89,7.19848886]
[1745635536550,6.5801,151.9,151.88,7.19848886]
[1745635538160,6.5803,151.89,151.86,8.5651]
[1745635538356,6.5803,151.89,151.88,7.19848886]
[1745635538549,24.44,151.91,151.88,7.19848886]
[1745635538753,6.58,151.9,151.88,7.19848886]
[1745635539860,6.58,151.9,151.89,7.19848886]
[1745635541053,31.63848886,151.91,151.86,9.18208886]
[1745635542360,6.5805,151.89,151.86,9.18208886]
[1745635542660,6.5805,151.89,151.87,7.19848886]
[1745635542961,6.5807,151.88,151.87,7.19848886]
[1745635543460,31.63848886,151.91,151.87,7.19848886]
[1745635543660,24.44,151.91,151.87,7.19848886]